fUSD/lending_fUSD_20240414
["ID","MTS","AMOUNT","RATE_DAILY","PERIOD"]
[322582663,1713084645981,-152.28,0.00046786,2]
[322582664,1713084645991,-757.0,0.000468,30]
[322582665,1713084646001,-152.47580633,0.00046813,30]
[322582666,1713084646012,-157.03403006,0.00046822,30]
[322582667,1713084646022,-152.47580633,0.00046841,30]
[322582668,1713084646031,-852.0,0.00046849,30]
[322582669,1713084646041,-152.47580633,0.00046871,30]
[322582670,1713084646051,-155.46548869,0.00046895,30]
[322582671,1713084646063,-3124.15332426,0.000469,2]
[322582673,1713084646073,-156.65701105,0.0004694,30]
[322582675,1713084646083,-150.0,0.00046949,120]
[322582677,1713084646093,-160.56350448,0.00046977,30]
[322582678,1713084646103,-100000.0,0.00047,47]
[322582679,1713084646114,-1150.0,0.00047,3]
[322582680,1713084646127,-150.0,0.00047,9]
[322582682,1713084646138,-232.91877884,0.00047,30]
[322582684,1713084646147,-21579.35662141,0.00047,120]
[322582686,1713084646159,-185.0180381,0.00047052,30]
[322582688,1713084646169,-166.84086599,0.00047087,30]
[322582690,1713084646179,-157.041416,0.00047198,76]
[322582692,1713084646190,-185.0180381,0.00047212,30]
[322582694,1713084646199,-152.47580633,0.00047323,30]
[322582695,1713084646210,-152.47580633,0.00047347,30]
[322582696,1713084646220,-185.0180381,0.00047355,30]
[322582697,1713084646231,-153.57672703,0.00047363,30]
[322582698,1713084646242,-170.77931922,0.0004741,30]
[322582699,1713084646253,-152.47580633,0.0004744,30]
[322582700,1713084646263,-157.041416,0.00047498,77]
[322582701,1713084646273,-150.0,0.000475,9]
[322582702,1713084646283,-154.9980197,0.00047504,30]
[322582703,1713084646294,-159.56304093,0.00047522,30]
[322582704,1713084646305,-152.45161625,0.00047547,30]
[322582705,1713084646315,-152.45161625,0.00047548,30]
[322582706,1713084646327,-170.77931922,0.00047564,30]
[322582707,1713084646338,-7728.86776458,0.00047575,23]
[322582708,1713084646348,-152.45161625,0.00047682,30]
[322582709,1713084646358,-158.97781202,0.000477,30]
[322582710,1713084646369,-185.0180381,0.0004779,30]
[322582711,1713084646380,-157.041416,0.00047798,79]
[322582712,1713084646391,-163.96461909,0.0004782,30]
[322582713,1713084646403,-163.77284282,0.00047869,30]
[322582714,1713084646413,-166.690532,0.00047878,60]
[322582715,1713084646424,-154.87360873,0.00047901,30]
[322582716,1713084646435,-1014.61964468,0.00047902,10]
[322582717,1713084646445,-1134.73021171,0.00047902,10]
[322582718,1713084646455,-982.7,0.00047916,2]
[322582719,1713084646466,-152.45161625,0.00047943,30]
[322582720,1713084646476,-154.76,0.00047945,2]
[322582721,1713084646487,-170.77931922,0.00047957,30]
[322582722,1713084646498,-260.14477758,0.00047987,120]
[322582723,1713084646508,-1368.92,0.00047999,30]
[322582724,1713084646518,-1368.92,0.00047999,30]
[322582725,1713084646527,-1368.92,0.00047999,30]
[322582726,1713084646537,-100000.0,0.00048,48]
[322582727,1713084646547,-7485.69921851,0.00048,30]
[322582728,1713084646557,-666540.0,0.00048,10]
[322582729,1713084646567,-150.0,0.00048,9]
[322582730,1713084646577,-253.15555556,0.00048,120]
[322582731,1713084646587,-151.0,0.00048,120]
[322582732,1713084646597,-1368.92,0.00048016,30]
[322582733,1713084646607,-228.51832373,0.00048017,7]
[322582734,1713084646617,-494.48327933,0.00048017,7]
[322582735,1713084646627,-30022.3878538,0.00048017,7]
[322582736,1713084646637,-160.56350448,0.00048038,30]
[322582737,1713084646647,-160.56350448,0.0004804,30]
[322582738,1713084646657,-152.28,0.00048051,2]
[322582739,1713084646667,-154.67053221,0.00048053,30]
[322582740,1713084646678,-150.0,0.00048087,7]
[322582741,1713084646688,-158.97781202,0.00048152,30]
[322582742,1713084646699,-150.0,0.0004819,7]
[322582743,1713084646710,-150.0,0.00048205,7]
[322582744,1713084646720,-852.0,0.00048219,30]
[322582745,1713084646730,-150.0,0.00048244,7]
[322582746,1713084646741,-152.47580633,0.00048254,30]
[322582747,1713084646750,-150.0,0.00048254,7]
[322582748,1713084646760,-154.78946012,0.00048258,30]
[322582749,1713084646770,-2816.65934608,0.00048288,13]
[322582750,1713084646779,-150.0,0.00048292,7]
[322582751,1713084646789,-150.0,0.00048297,7]
[322582752,1713084646799,-170.77931922,0.00048299,30]
[322582753,1713084646809,-150.0,0.00048299,7]
[322582754,1713084646819,-150.0,0.000483,7]
[322582755,1713084646829,-591.0,0.00048325,30]
[322582756,1713084646839,-160.46814081,0.00048344,7]
[322582757,1713084646848,-153.57672703,0.00048353,30]
[322582758,1713084646858,-150.0,0.00048357,7]
[322582759,1713084646869,-220.28640523,0.00048358,3]
[322582760,1713084646879,-2867.91542878,0.00048398,2]
[322582761,1713084646889,-150.0,0.00048399,7]
[322582762,1713084646898,-150.0,0.00048425,7]
[322582763,1713084646908,-150.0,0.00048446,7]
[322582764,1713084646918,-150.0,0.00048452,7]
[322582765,1713084646928,-157.041416,0.00048498,82]
[322582766,1713084646938,-2037.0,0.000485,30]
[322582767,1713084646948,-150.0,0.000485,9]
[322582768,1713084646957,-150.0,0.00048501,7]
[322582769,1713084646967,-197.20008912,0.00048518,7]
[322582770,1713084646978,-150.0,0.0004852,7]
[322582771,1713084646990,-160.56350448,0.00048529,30]
[322582772,1713084647000,-185.0180381,0.00048541,30]
[322582773,1713084647010,-150.0,0.00048569,7]
[322582774,1713084647020,-150.0,0.0004858,7]
[322582775,1713084647030,-150.0,0.00048586,7]
[322582776,1713084647040,-150.0,0.00048595,7]
[322582777,1713084647051,-2005.0,0.000486,30]
[322582778,1713084647060,-150.0,0.000486,7]
[322582779,1713084647071,-253.15555556,0.00048603,120]
[322582780,1713084647081,-150.0,0.00048608,7]
[322582781,1713084647091,-156.65701105,0.0004862,30]
[322582782,1713084647101,-150.0,0.00048638,7]
[322582783,1713084647111,-160.56350448,0.00048642,30]
[322582784,1713084647120,-150.0,0.0004865,7]
[322582785,1713084647131,-150.0,0.00048651,7]
[322582786,1713084647140,-150.0,0.00048676,7]
[322582787,1713084647150,-150.0,0.00048725,7]
[322582788,1713084647161,-150.0,0.00048747,7]
[322582789,1713084647171,-2867.91542878,0.00048759,2]
[322582790,1713084647181,-150.0,0.00048761,7]
[322582791,1713084647190,-170.77931922,0.00048775,30]
[322582792,1713084647201,-1009.6411,0.0004878,23]
[322582793,1713084647210,-157.041416,0.00048798,83]
[322582794,1713084647221,-1000.0,0.000488,23]
[322582795,1713084647230,-150.0,0.00048809,7]
[322582796,1713084647240,-800.0,0.00048822,2]
[322582797,1713084647250,-591.0,0.00048824,30]
[322582798,1713084647260,-333.33333,0.00048847,44]
[322582799,1713084647269,-170.77931922,0.00048855,30]
[322582800,1713084647280,-150.0,0.00048864,7]
[322582801,1713084647289,-7397.04,0.00048874,5]
[322582802,1713084647299,-550.51311595,0.00048878,4]
[322582803,1713084647308,-155.0,0.00048878,4]
[322582804,1713084647318,-155.29437304,0.00048878,4]
[322582805,1713084647327,-215.43117381,0.00048878,4]
[322582806,1713084647337,-648.2666,0.00048878,4]
[322582807,1713084647347,-1058.36793939,0.00048878,4]
[322582808,1713084647357,-956.52484441,0.00048878,4]
[322582809,1713084647367,-150.0,0.00048878,60]
[322582810,1713084647376,-1368.92,0.00048878,30]
[322582811,1713084647386,-213083.47601042,0.00048879,4]
[322582812,1713084647395,-1368.92,0.00048879,30]
[322582813,1713084647405,-1368.92,0.00048879,30]
[322582814,1713084647414,-1368.92,0.00048879,30]
[322582815,1713084647424,-1368.92,0.00048879,30]
[322582816,1713084647433,-1368.92,0.00048879,30]
[322582817,1713084647443,-1368.92,0.00048879,30]
[322582818,1713084647452,-1369.15825776,0.00048879,30]
[322582819,1713084647461,-1965361.64213179,0.0004888,7]
[322582820,1713084647471,-3369.72079421,0.0004888,4]
[322582821,1713084647480,-170.56929163,0.0004888,7]
[322582822,1713084647490,-13415.85376187,0.0004888,4]
[322582823,1713084647500,-10403.11145729,0.0004888,5]
[322582824,1713084647509,-2700.58005433,0.0004888,4]
[322582825,1713084647519,-157.03403006,0.00048883,30]
[322582826,1713084647528,-152.47580633,0.00048905,30]
[322582827,1713084647538,-170.77931922,0.00048972,30]
[322582828,1713084647548,-1569.31,0.00048986,15]
[322582829,1713084647558,-160.56350448,0.00048988,30]
[322582830,1713084647567,-100000.0,0.00049,49]
[322582831,1713084647576,-3896.05023585,0.00049,120]
[322582832,1713084647586,-850.0,0.00049,120]
[322582833,1713084647595,-1200.0,0.00049,3]
[322582834,1713084647605,-150.0,0.00049,9]
[322582835,1713084647615,-510.57,0.00049,2]
[322582836,1713084647624,-424.09422186,0.00049,120]
[322582837,1713084647634,-7728.86776458,0.00049035,25]
[322582838,1713084647643,-150.0,0.00049056,120]
[322582839,1713084647653,-319.32389597,0.00049057,2]
[322582840,1713084647663,-185.0180381,0.00049067,30]
[322582841,1713084647673,-185.0180381,0.00049127,30]
[322582842,1713084647683,-500.0,0.0004913,30]
[322582843,1713084647693,-200.0,0.0004913,30]
[322582844,1713084647703,-2867.91542878,0.00049147,2]
[322582845,1713084647713,-157.041416,0.00049198,84]
[322582846,1713084647917,-1547.3,0.000492,6]
[322582847,1713084647934,-1547.3,0.000492,6]
[322582848,1713084647944,-1547.3,0.000492,6]
[322582849,1713084647952,-1547.3,0.000492,6]
[322582850,1713084647962,-1547.3,0.000492,6]
[322582851,1713084647972,-1547.3,0.000492,6]
[322582852,1713084647986,-1547.3,0.000492,6]
[322582853,1713084647996,-1547.3,0.000492,6]
[322582854,1713084648005,-1547.3,0.000492,6]
[322582855,1713084648016,-1547.3,0.000492,6]
[322582856,1713084648025,-1547.3,0.000492,6]
[322582857,1713084648035,-1547.3,0.000492,6]
[322582858,1713084648043,-1547.3,0.000492,6]
[322582859,1713084648053,-1547.3,0.000492,6]
[322582860,1713084648062,-1547.3,0.000492,6]
[322582861,1713084648072,-1547.3,0.000492,6]
[322582862,1713084648081,-1547.3,0.000492,6]
[322582863,1713084648090,-1547.3,0.000492,6]
[322582864,1713084648100,-1547.3,0.000492,6]
[322582865,1713084648109,-1547.3,0.000492,6]
[322582866,1713084648118,-253.15555556,0.00049205,120]
[322582867,1713084648127,-152.45161625,0.00049227,30]
[322582868,1713084648137,-5579.17082253,0.00049292,2]
[322582869,1713084648147,-500.0,0.00049315,120]
[322582870,1713084648156,-500.0,0.00049315,120]
[322582871,1713084648165,-507.14975543,0.00049315,120]
[322582872,1713084648174,-500.0,0.00049315,120]
[322582873,1713084648183,-1088.08,0.00049315,120]
[322582874,1713084648193,-500.0,0.00049315,120]
[322582875,1713084648202,-948.94,0.00049315,120]
[322582876,1713084648211,-500.0,0.00049315,120]
[322582877,1713084648221,-501.25712334,0.00049315,120]
[322582878,1713084648230,-532.37356495,0.00049315,120]
[322582879,1713084648242,-500.0,0.00049315,120]
[322582880,1713084648251,-500.0,0.00049315,120]
[322582881,1713084648260,-500.0,0.00049315,120]
[322582882,1713084648269,-879.42,0.00049315,120]
[322582883,1713084648278,-1258.96,0.00049315,120]
[322582884,1713084648288,-503.48674865,0.00049315,120]
[322582885,1713084648297,-1106.16,0.00049315,120]
[322582886,1713084648307,-320.96462185,0.00049315,2]
[322582887,1713084648317,-500.0,0.00049315,120]
[322582888,1713084648326,-1394.53,0.00049315,120]
[322582889,1713084648335,-500.0,0.00049315,120]
[322582890,1713084648344,-1544.92,0.00049315,120]
[322582891,1713084648353,-500.0,0.00049315,120]
[322582892,1713084648362,-1021.94,0.00049315,120]
[322582893,1713084648371,-500.36042925,0.00049315,120]
[322582894,1713084648381,-503.26019013,0.00049315,120]
[322582895,1713084648390,-500.0,0.00049315,120]
[322582896,1713084648400,-1134.71,0.00049315,120]
[322582897,1713084648409,-298.75528547,0.00049315,120]
[322582898,1713084648418,-500.0,0.00049315,120]
[322582899,1713084648428,-500.0,0.00049315,120]
[322582900,1713084648438,-1132.74,0.00049315,120]
[322582901,1713084648448,-500.0,0.00049315,120]
[322582902,1713084648456,-263.25084229,0.00049315,120]
[322582903,1713084648465,-500.0,0.00049315,120]
[322582904,1713084648474,-1404.24,0.00049315,120]
[322582905,1713084648484,-728.9,0.00049315,120]
[322582906,1713084648493,-1091.06,0.00049315,120]
[322582907,1713084648502,-502.74,0.00049315,120]
[322582908,1713084648512,-500.0,0.00049315,120]
[322582909,1713084648521,-500.0,0.00049315,120]
[322582910,1713084648531,-500.0,0.00049315,120]
[322582911,1713084648540,-500.0,0.00049315,120]
[322582912,1713084648549,-701.88,0.00049315,120]
[322582913,1713084648558,-500.0,0.00049315,120]
[322582914,1713084648567,-236.0380814,0.00049315,120]
[322582915,1713084648576,-500.0,0.00049315,120]
[322582916,1713084648585,-1260.05,0.00049315,120]
[322582917,1713084648594,-1415.01,0.00049315,120]
[322582918,1713084648604,-500.0,0.00049315,120]
[322582919,1713084648613,-500.0,0.00049315,120]
[322582920,1713084648622,-500.0,0.00049315,120]
[322582921,1713084648632,-500.0,0.00049315,120]
[322582922,1713084648641,-500.0,0.00049315,120]
[322582923,1713084648650,-577.47,0.00049315,120]
[322582924,1713084648659,-519.71,0.00049315,120]
[322582925,1713084648669,-500.0,0.00049315,120]
[322582926,1713084648678,-500.0,0.00049315,120]
[322582927,1713084648687,-939.0,0.00049315,120]
[322582928,1713084648696,-177.45754578,0.00049315,120]
[322582929,1713084648705,-500.0,0.00049315,120]
[322582930,1713084648714,-500.0,0.00049315,120]
[322582931,1713084648723,-2429.88,0.00049315,120]
[322582932,1713084648734,-500.0,0.00049315,120]
[322582933,1713084648744,-500.0,0.00049315,120]
[322582934,1713084648753,-500.0,0.00049315,120]
[322582935,1713084648762,-500.0,0.00049315,120]
[322582936,1713084648772,-945.0,0.00049315,120]
[322582937,1713084648781,-1122.64,0.00049315,120]
[322582938,1713084648790,-569.33,0.00049315,120]
[322582939,1713084648799,-500.0,0.00049315,2]
[322582940,1713084648809,-500.0,0.00049315,120]
[322582941,1713084648817,-500.0,0.00049315,120]
[322582942,1713084648827,-514.56,0.00049315,120]
[322582943,1713084648836,-500.0,0.00049315,120]
[322582944,1713084648846,-500.0,0.00049315,120]
[322582945,1713084648855,-500.0,0.00049315,120]
[322582946,1713084648864,-854.75,0.00049315,120]
[322582947,1713084648873,-500.0,0.00049315,120]
[322582948,1713084648882,-500.0,0.00049315,120]
[322582949,1713084648892,-762.26,0.00049315,120]
[322582950,1713084648901,-2224.23,0.00049315,120]
[322582951,1713084648910,-547.47,0.00049315,120]
[322582952,1713084648920,-946.09,0.00049315,120]
[322582953,1713084648929,-500.0,0.00049315,120]
[322582954,1713084648938,-500.0,0.00049315,120]
[322582955,1713084648947,-1476.74,0.00049315,120]
[322582956,1713084648956,-500.0,0.00049315,120]
[322582957,1713084648966,-500.0,0.00049315,120]
[322582958,1713084648977,-500.0,0.00049315,120]
[322582959,1713084648987,-529.73,0.00049315,120]
[322582960,1713084648996,-500.0,0.00049315,2]
[322582961,1713084649005,-842.06,0.00049315,120]
[322582962,1713084649015,-1730.37,0.00049315,120]
[322582963,1713084649025,-500.0,0.00049315,120]
[322582964,1713084649034,-500.0,0.00049315,120]
[322582965,1713084649043,-500.0,0.00049315,120]
[322582966,1713084649053,-500.0,0.00049315,120]
[322582967,1713084649062,-500.0,0.00049315,120]
[322582968,1713084649071,-500.0,0.00049315,120]
[322582969,1713084649081,-1056.57,0.00049315,120]
[322582970,1713084649089,-500.0,0.00049315,120]
[322582971,1713084649099,-912.07,0.00049315,120]
[322582972,1713084649108,-1837.82,0.00049315,120]
[322582973,1713084649117,-500.0,0.00049315,120]
[322582974,1713084649126,-500.0,0.00049315,120]
[322582975,1713084649135,-500.0,0.00049315,120]
[322582976,1713084649145,-500.0,0.00049315,120]
[322582977,1713084649155,-500.0,0.00049315,120]
[322582978,1713084649164,-558.97,0.00049315,120]
[322582979,1713084649174,-500.0,0.00049315,120]
[322582980,1713084649183,-500.0,0.00049315,120]
[322582981,1713084649193,-500.0,0.00049315,120]
[322582982,1713084649202,-563.35,0.00049315,120]
[322582983,1713084649212,-500.0,0.00049315,120]
[322582984,1713084649221,-578.07,0.00049315,120]
[322582985,1713084649230,-1056.44,0.00049315,120]
[322582986,1713084649241,-2000.0,0.00049315,120]
[322582987,1713084649250,-500.0,0.00049315,120]
[322582988,1713084649259,-500.0,0.00049315,120]
[322582989,1713084649268,-500.0,0.00049315,120]
[322582990,1713084649277,-1193.11,0.00049315,120]
[322582991,1713084649287,-2241.55,0.00049315,120]
[322582992,1713084649296,-2466.53,0.00049315,120]
[322582993,1713084649305,-500.0,0.00049315,120]
[322582994,1713084649314,-441.38221981,0.00049315,120]
[322582995,1713084649323,-696.03,0.00049315,120]
[322582996,1713084649333,-595.91,0.00049315,120]
[322582997,1713084649342,-1851.48,0.00049315,120]
[322582998,1713084649351,-504.65,0.00049315,120]
[322582999,1713084649359,-156.36221261,0.00049315,120]
[322583000,1713084649368,-500.0,0.00049315,120]
[322583001,1713084649377,-1512.37,0.00049315,120]
[322583002,1713084649386,-502.70504131,0.00049315,120]
[322583003,1713084649396,-660.14,0.00049315,120]
[322583004,1713084649405,-500.0,0.00049315,120]
[322583005,1713084649414,-1712.82,0.00049315,120]
[322583006,1713084649424,-457.76307948,0.00049315,120]
[322583007,1713084649433,-500.0,0.00049315,120]
[322583008,1713084649442,-500.0,0.00049315,120]
[322583009,1713084649451,-500.0,0.00049315,120]
[322583010,1713084649461,-500.0,0.00049315,120]
[322583011,1713084649470,-500.0,0.00049315,120]
[322583012,1713084649479,-500.0,0.00049315,120]
[322583013,1713084649490,-1244.96,0.00049315,120]
[322583014,1713084649500,-1796.99,0.00049315,120]
[322583015,1713084649510,-908.96,0.00049315,120]
[322583016,1713084649520,-500.0,0.00049315,120]
[322583017,1713084649529,-500.0,0.00049315,120]
[322583018,1713084649539,-678.81,0.00049315,120]
[322583019,1713084649548,-500.0,0.00049315,120]
[322583020,1713084649558,-1247.11,0.00049315,120]
[322583021,1713084649566,-500.0,0.00049315,120]
[322583022,1713084649576,-599.48012227,0.00049315,120]
[322583023,1713084649585,-500.0,0.00049315,120]
[322583024,1713084649594,-500.0,0.00049315,120]
[322583025,1713084649604,-299.81605133,0.00049315,10]
[322583026,1713084649613,-1484.51,0.00049315,120]
[322583027,1713084649622,-500.0,0.00049315,120]
[322583028,1713084649631,-500.0,0.00049315,120]
[322583029,1713084649640,-1329.41,0.00049315,120]
[322583030,1713084649650,-500.0,0.00049315,120]
[322583031,1713084649659,-564.69,0.00049315,120]
[322583032,1713084649668,-500.0,0.00049315,120]
[322583033,1713084649678,-3339.49,0.00049315,120]
[322583034,1713084649687,-500.0,0.00049315,120]
[322583035,1713084649697,-505.69905664,0.00049315,120]
[322583036,1713084649706,-719.4,0.00049315,120]
[322583037,1713084649724,-1194.35,0.00049315,120]
[322583038,1713084649733,-500.0,0.00049315,120]
[322583039,1713084649742,-500.0,0.00049315,120]
[322583040,1713084649753,-500.0,0.00049315,120]
[322583041,1713084649762,-679.83,0.00049315,120]
[322583042,1713084649771,-500.0,0.00049315,120]
[322583043,1713084649780,-1008.05,0.00049315,120]
[322583044,1713084649790,-500.0,0.00049315,120]
[322583045,1713084649799,-2467.15,0.00049315,120]
[322583046,1713084649808,-541.5040261,0.00049315,120]
[322583047,1713084649817,-500.0,0.00049315,120]
[322583048,1713084649827,-588.11,0.00049315,120]
[322583049,1713084649836,-2468.36,0.00049315,120]
[322583050,1713084649845,-500.0,0.00049315,120]
[322583051,1713084649854,-500.0,0.00049315,120]
[322583052,1713084649864,-644.87,0.00049315,120]
[322583053,1713084649874,-634.72,0.00049315,120]
[322583054,1713084649884,-1579.06,0.00049315,120]
[322583055,1713084649894,-500.0,0.00049315,120]
[322583056,1713084649903,-500.0,0.00049315,120]
[322583057,1713084649912,-500.0,0.00049315,120]
[322583058,1713084649922,-500.0,0.00049315,120]
[322583059,1713084649931,-1747.02,0.00049315,120]
[322583060,1713084649941,-500.0,0.00049315,120]
[322583061,1713084649951,-3898.75,0.00049315,120]
[322583062,1713084649960,-500.0,0.00049315,120]
[322583063,1713084649969,-500.0,0.00049315,120]
[322583064,1713084649981,-500.0,0.00049315,120]
[322583065,1713084649991,-500.0,0.00049315,120]
[322583066,1713084650000,-500.0,0.00049315,120]
[322583067,1713084650009,-765.87,0.00049315,120]
[322583068,1713084650019,-1412.05,0.00049315,120]
[322583069,1713084650029,-500.0,0.00049315,120]
[322583070,1713084650039,-522.78,0.00049315,120]
[322583071,1713084650048,-500.0,0.00049315,120]
[322583072,1713084650059,-500.0,0.00049315,120]
[322583073,1713084650068,-500.0,0.00049315,120]
[322583074,1713084650077,-2541.97,0.00049315,120]
[322583075,1713084650087,-500.0,0.00049315,120]
[322583076,1713084650097,-590.29,0.00049315,120]
[322583077,1713084650106,-500.0,0.00049315,120]
[322583078,1713084650115,-500.0,0.00049315,120]
[322583079,1713084650124,-500.0,0.00049315,120]
[322583080,1713084650134,-2403.74,0.00049315,120]
[322583081,1713084650143,-2055.71,0.00049315,120]
[322583082,1713084650153,-4632.63,0.00049315,120]
[322583083,1713084650162,-784.32,0.00049315,120]
[322583084,1713084650171,-500.0,0.00049315,120]
[322583085,1713084650181,-500.0,0.00049315,120]
[322583086,1713084650191,-500.0,0.00049315,120]
[322583087,1713084650200,-500.0,0.00049315,120]
[322583088,1713084650210,-831.51,0.00049315,120]
[322583089,1713084650219,-633.36,0.00049315,120]
[322583090,1713084650229,-1310.94,0.00049315,120]
[322583091,1713084650239,-500.0,0.00049315,120]
[322583092,1713084650249,-28015.33,0.00049315,120]
[322583093,1713084650258,-3992.29,0.00049315,120]
[322583094,1713084650267,-1441.08,0.00049315,120]
[322583095,1713084650276,-500.0,0.00049315,120]
[322583096,1713084650286,-996.32,0.00049315,120]
[322583097,1713084650295,-500.0,0.00049315,120]
[322583098,1713084650304,-500.0,0.00049315,120]
[322583099,1713084650313,-14466.77,0.00049315,120]
[322583100,1713084650323,-500.0,0.00049315,120]
[322583101,1713084650332,-571.97,0.00049315,120]
[322583102,1713084650341,-10692.16,0.00049315,120]
[322583103,1713084650350,-2805.09,0.00049315,120]
[322583104,1713084650359,-500.0,0.00049315,120]
[322583105,1713084650369,-613.6,0.00049315,120]
[322583106,1713084650378,-500.0,0.00049315,120]
[322583107,1713084650387,-500.0,0.00049315,120]
[322583108,1713084650396,-500.0,0.00049315,120]
[322583109,1713084650405,-500.0,0.00049315,120]
[322583110,1713084650414,-500.0,0.00049315,120]
[322583111,1713084650425,-500.0,0.00049315,120]
[322583112,1713084650434,-500.0,0.00049315,120]
[322583113,1713084650443,-500.0,0.00049315,120]
[322583114,1713084650453,-500.0,0.00049315,120]
[322583115,1713084650462,-500.0,0.00049315,120]
[322583116,1713084650471,-20614.88,0.00049315,120]
[322583117,1713084650481,-500.0,0.00049315,120]
[322583118,1713084650491,-500.0,0.00049315,120]
[322583119,1713084650500,-608.89,0.00049315,120]
[322583120,1713084650508,-7402.03,0.00049315,120]
[322583121,1713084650518,-500.0,0.00049315,120]
[322583122,1713084650527,-2266.94,0.00049315,120]
[322583123,1713084650536,-500.0,0.00049315,120]
[322583124,1713084650546,-500.0,0.00049315,120]
[322583125,1713084650555,-500.0,0.00049315,120]
[322583126,1713084650564,-583.89,0.00049315,120]
[322583127,1713084650572,-1728.26,0.00049315,120]
[322583128,1713084650581,-500.0,0.00049315,120]
[322583129,1713084650590,-19362.17,0.00049315,120]
[322583130,1713084650599,-501.6119768,0.00049315,120]
[322583131,1713084650609,-9547.51,0.00049315,120]
[322583132,1713084650618,-500.0,0.00049315,120]
[322583133,1713084650628,-500.0,0.00049315,120]
[322583134,1713084650637,-528.57,0.00049315,120]
[322583135,1713084650647,-500.0,0.00049315,120]
[322583136,1713084650656,-500.0,0.00049315,120]
[322583137,1713084650666,-2977.95,0.00049315,120]
[322583138,1713084650677,-1155.69,0.00049315,120]
[322583139,1713084650687,-2958.77,0.00049315,120]
[322583140,1713084650697,-500.0,0.00049315,120]
[322583141,1713084650707,-500.0,0.00049315,120]
[322583142,1713084650729,-1808.78,0.00049315,120]
[322583143,1713084650740,-500.0,0.00049315,120]
[322583144,1713084650750,-4027.2,0.00049315,120]
[322583145,1713084650759,-500.0,0.00049315,120]
[322583146,1713084650769,-500.0,0.00049315,120]
[322583147,1713084650779,-1782.89,0.00049315,120]
[322583148,1713084650789,-1782.89,0.00049315,120]
[322583149,1713084650799,-502.08,0.00049315,120]
[322583150,1713084650808,-1782.89,0.00049315,120]
[322583151,1713084650817,-1782.89,0.00049315,120]
[322583152,1713084650826,-5692.67,0.00049315,120]
[322583153,1713084650836,-1782.89,0.00049315,120]
[322583154,1713084650845,-1782.89,0.00049315,120]
[322583155,1713084650855,-1782.89,0.00049315,120]
[322583156,1713084650864,-1782.89,0.00049315,120]
[322583157,1713084651073,-1782.89,0.00049315,120]
[322583158,1713084651083,-500.0,0.00049315,120]
[322583159,1713084651092,-500.0,0.00049315,120]
[322583160,1713084651102,-1782.89,0.00049315,120]
[322583161,1713084651111,-1782.89,0.00049315,120]
[322583162,1713084651121,-1782.89,0.00049315,120]
[322583163,1713084651130,-1782.89,0.00049315,120]
[322583164,1713084651139,-1782.89,0.00049315,120]
[322583165,1713084651148,-500.0,0.00049315,120]
[322583166,1713084651158,-1782.89,0.00049315,120]
[322583167,1713084651167,-535.32000456,0.00049315,120]
[322583168,1713084651176,-1563.79,0.00049315,120]
[322583169,1713084651186,-15676.74,0.00049315,120]
[322583170,1713084651195,-1782.89,0.00049315,120]
[322583171,1713084651205,-1782.89,0.00049315,120]
[322583172,1713084651214,-774.37,0.00049315,120]